fUSD/lending_fUSD_20250209
["ID","MTS","AMOUNT","RATE_DAILY","PERIOD"]
[352476611,1739131116242,-372.75,0.00010135,2]
[352476612,1739131116266,-379.2,0.00010135,2]
[352476613,1739131116290,-500.0,0.00010136,2]
[352476614,1739131116313,-500.0,0.00010136,2]
[352476615,1739131116337,-164.77,0.00010137,2]
[352476616,1739131116360,-500.0,0.00010272,2]
[352476617,1739131116384,-500.0,0.00010272,2]
[352476618,1739131116409,-500.0,0.00010273,2]
[352476619,1739131116433,-500.0,0.00010273,2]
[352476620,1739131116457,-500.0,0.00010409,2]
[352476621,1739131116491,-563.29,0.00010409,2]
[352476622,1739131116514,-500.0,0.0001041,2]
[352476623,1739131116538,-473.76,0.0001041,2]
[352476624,1739131116561,-434.52512954,0.00010546,2]
[352476625,1739131116587,-450.37,0.00010547,2]
[352476626,1739131116610,-377.68,0.00010684,2]
[352476627,1739131116635,-150.0,0.00010959,2]
[352476628,1739131116660,-435.98,0.00010974,2]
[352476629,1739131116683,-1000.0,0.00010982,2]
[352476630,1739131116707,-500.0,0.00010998,2]
[352476631,1739131118618,367.76,0.00010134,2]
[352476632,1739131156300,-2000.0,0.00011006,2]
[352476633,1739131156324,-371.92,0.00011007,2]
[352476634,1739131156346,-382.14,0.00011007,2]
[352476635,1739131156371,-886.46,0.00011158,2]
[352476636,1739131156393,-6074.78,0.0001118,2]
[352476637,1739131156417,-236.52,0.00011215,2]
[352476638,1739131156440,-300.0,0.00011299,2]
[352476639,1739131156462,-1805.73,0.000113,2]
[352476640,1739131156484,-2000.0,0.00011305,2]
[352476641,1739131156508,-612.11987055,0.00011352,2]
[352476642,1739131156531,-1290.35,0.00011432,2]
[352476643,1739131157242,380.37,0.00011007,2]
[352476644,1739131164443,500.0,9.998e-05,2]
[352476645,1739131166098,453.40322478,9.998e-05,2]
[352476646,1739131178757,351.51,0.00011337,2]
[352476647,1739131184894,500.0,9.999e-05,2]
[352476648,1739131189257,500.0,9.999e-05,2]
[352476649,1739131191178,404.48332475,9.999e-05,2]
[352476650,1739131195283,2080.61,0.00011428,2]
[352476651,1739131210419,1084.37294007,0.00011199,2]
[352476652,1739131222502,500.0,9.999e-05,2]
[352476653,1739131222783,263.77,0.00010136,2]
[352476654,1739131229431,692.26,9.375e-05,2]
[352476655,1739131247768,169.97,0.00011235,2]
[352476656,1739131258537,500.0,9.999e-05,2]
[352476657,1739131266243,500.0,9.999e-05,2]
[352476658,1739131300276,1625.16,0.000113,2]
[352476659,1739131397040,2098.16,0.00011111,2]
[352476661,1739131486397,1462.64,0.000113,2]
[352476662,1739131509223,1107.69066306,0.00011074,2]
[352476663,1739131517386,162.87,0.00011297,2]
[352476664,1739131562087,392.24789593,9.998e-05,2]
[352476665,1739131570426,250.0,0.00011057,2]
[352476666,1739131618575,500.0,0.00010738,2]
[352476667,1739131620998,2392.89695132,0.00010738,2]
[352476670,1739131832390,-179.88,0.00010137,2]
[352476671,1739131832401,-368.56,0.00010283,2]
[352476672,1739131832411,-373.78,0.00010353,2]
[352476673,1739131832421,-379.72,0.00010456,2]
[352476674,1739131832431,-381.32,0.00010606,2]
[352476675,1739131832441,-300.0,0.0001069,2]
[352476676,1739131832450,-1000.0,0.00010691,2]
[352476677,1739131832459,-369.63,0.00010691,2]
[352476678,1739131832468,-376.46,0.00010691,2]
[352476679,1739131832477,-374.15,0.00010691,2]
[352476680,1739131832487,-373.38,0.00010691,2]
[352476681,1739131832497,-377.71,0.00010691,2]
[352476682,1739131832507,-368.85,0.00010691,2]
[352476683,1739131832516,-268.16000002,0.00010694,2]
[352476684,1739131832538,-562.01025401,0.00010694,2]
[352476685,1739131832549,-386.52218385,0.00010694,2]
[352476686,1739131832588,-283.30756212,0.00010694,2]
[352476687,1739131832597,-1244.77,0.00010727,2]
[352476688,1739131832607,-369.34,0.00010727,2]
[352476689,1739131832616,-375.66,0.00010727,2]
[352476690,1739131832627,-369.64,0.00010727,2]
[352476691,1739131832637,-377.63,0.00010738,2]
[352476692,1739131832647,-379.13,0.00010738,2]
[352476693,1739131832656,-2700.76245508,0.00010738,2]
[352476694,1739131832667,-522.3652808,0.00010738,2]
[352476695,1739131832679,-1244.15535,0.00010738,2]
[352476696,1739131832691,-1805.281405,0.00010738,2]
[352476697,1739131832706,-485.485,0.00010738,2]
[352476709,1739131838264,-5559.0,0.00010738,2]
[352476710,1739131838275,-318.20514,0.00010738,2]
[352476711,1739131838318,-1949.5,0.00010738,2]
[352476712,1739131838371,-6922.3484178,0.00010738,2]
[352476713,1739131838381,-1113.35,0.00010812,2]
[352476714,1739131838391,-174.94,0.00011032,2]
[352476715,1739131838401,-1316.38,0.000113,2]
[352476716,1739131838411,-376.97,0.00011506,2]
[352476717,1739131838421,-370.96,0.00011506,2]
[352476718,1739131838431,-372.06,0.00011506,2]
[352476719,1739131838440,-373.21,0.00011506,2]
[352476720,1739131838450,-376.34,0.00011506,2]
[352476721,1739131838459,-231.33,0.00011507,2]
[352476722,1739131838469,-368.58,0.00011507,2]
[352476723,1739131838478,-378.44,0.00011507,2]
[352476724,1739131838488,-371.4,0.00011507,2]
[352476725,1739131838497,-377.56,0.00011507,2]
[352476726,1739131838506,-374.48,0.00011507,2]
[352476727,1739131838516,-374.16,0.00011507,2]
[352476728,1739131838525,-370.89,0.00011507,2]
[352476729,1739131838534,-380.59,0.00011507,2]
[352476731,1739131838543,-367.5,0.00011507,2]
[352476732,1739131838554,-370.85,0.00011507,2]
[352476733,1739131838563,-28.68813328,0.00011507,2]
[352476734,1739131838574,-350.28186672,0.00011507,2]
[352476735,1739131838583,-375.51,0.00011507,2]
[352476737,1739131838593,-380.43,0.00011507,2]
[352476739,1739131838602,-372.37,0.00011507,2]
[352476740,1739131838611,-376.24,0.00011507,2]
[352476741,1739131838620,-367.89,0.00011507,2]
[352476742,1739131838629,-377.23,0.00011508,2]
[352476743,1739131838638,-378.85,0.00011508,2]
[352476745,1739131838647,-368.11,0.00011509,2]
[352476747,1739131838656,-377.3,0.0001151,2]
[352476748,1739131838665,-369.2,0.00011512,2]
[352476749,1739131838675,-371.92,0.00011516,2]
[352476750,1739131838684,-376.96,0.00011522,2]
[352476751,1739131838693,-377.91,0.00011531,2]
[352476753,1739131838702,-376.41,0.00011546,2]
[352476755,1739131838712,-374.03,0.0001157,2]
[352476756,1739131838721,-379.76,0.00011608,2]
[352476757,1739131838731,-1000.0,0.00011631,2]
[352476758,1739131838740,-1000.0,0.00011631,2]
[352476759,1739131838749,-1000.0,0.00011631,2]
[352476760,1739131838758,-1000.0,0.00011631,2]
[352476761,1739131838768,-1000.0,0.00011631,2]
[352476762,1739131838777,-1000.0,0.00011631,2]
[352476763,1739131838787,-1000.0,0.00011631,2]
[352476764,1739131838796,-1000.0,0.00011631,2]
[352476765,1739131838806,-1000.0,0.00011631,2]
[352476766,1739131838815,-1000.0,0.00011631,2]
[352476767,1739131838824,-692.26,0.00011639,2]
[352476768,1739131838833,-411.72,0.00011673,2]
[352476769,1739131838843,-411.72,0.00011676,2]
[352476770,1739131838852,-411.72,0.0001168,2]
[352476771,1739131838861,-411.72,0.00011683,2]
[352476772,1739131838871,-411.72,0.00011686,2]
[352476773,1739131838880,-411.72,0.00011689,2]
[352476774,1739131838889,-411.72,0.00011692,2]
[352476775,1739131838898,-411.72,0.00011695,2]
[352476776,1739131838908,-411.72,0.00011698,2]
[352476777,1739131838917,-411.72,0.00011701,2]
[352476778,1739131838927,-411.72,0.00011704,2]
[352476779,1739131838936,-411.72,0.00011707,2]
[352476780,1739131838946,-411.72,0.0001171,2]
[352476781,1739131838955,-411.72,0.00011713,2]
[352476782,1739131838966,-411.72,0.00011716,2]
[352476783,1739131838976,-411.72,0.00011719,2]
[352476784,1739131838986,-411.72,0.00011723,2]
[352476785,1739131838995,-411.72,0.00011726,2]
[352476786,1739131839004,-411.72,0.00011729,2]
[352476787,1739131839013,-411.72,0.00011732,2]
[352476788,1739131839022,-1000.0,0.00012027,2]
[352476789,1739131839032,-370.09,0.00012054,2]
[352476790,1739131839041,-45386.58,0.00012055,2]
[352476791,1739131839050,-1278.27821049,0.00012503,2]
[352476792,1739131839060,-500.0,0.00012601,2]
[352476793,1739131839070,-161.27912554,0.00012601,2]
[352476794,1739131839080,-493.2224605,0.00012601,2]
[352476795,1739131839089,-500.0,0.00012602,2]
[352476796,1739131839099,-500.0,0.00012602,2]
[352476797,1739131839109,-500.0,0.00012602,2]
[352476798,1739131839118,-500.0,0.00012602,2]
[352476799,1739131839127,-500.0,0.00012602,2]
[352476800,1739131839137,-500.0,0.00012602,2]
[352476801,1739131839146,-500.0,0.00012602,2]
[352476802,1739131839155,-500.0,0.00012602,2]
[352476803,1739131839165,-500.0,0.00012602,2]
[352476804,1739131839174,-500.0,0.00012602,2]
[352476805,1739131839184,-500.0,0.00012602,2]
[352476806,1739131839193,-617.98,0.00012602,2]
[352476807,1739131839202,-500.0,0.00012602,2]
[352476808,1739131839212,-500.0,0.00012602,2]
[352476809,1739131839221,-500.0,0.00012602,2]
[352476810,1739131839231,-500.0,0.00012602,2]
[352476811,1739131839242,-500.0,0.00012602,2]
[352476812,1739131839253,-500.0,0.00012602,2]
[352476813,1739131839263,-500.0,0.00012602,2]
[352476814,1739131839273,-593.64,0.00012602,2]
[352476815,1739131839283,-500.0,0.00012602,2]
[352476816,1739131839294,-500.0,0.00012602,2]
[352476817,1739131839304,-500.0,0.00012602,2]
[352476818,1739131839314,-500.0,0.00012602,2]
[352476819,1739131839327,-61963.3,0.00012603,2]
[352476820,1739131839337,-52868.39240805,0.00012603,2]
[352476821,1739131839349,-2737.11446961,0.00012603,2]
[352476822,1739131839362,-1267.43912775,0.00012603,2]
[352476823,1739131839373,-5852.47830461,0.00012603,2]
[352476824,1739131839388,-17300.23374942,0.00012603,2]
[352476825,1739131839398,-236.52,0.00012617,2]
[352476826,1739131839407,-500.0,0.00012673,2]
[352476827,1739131839417,-241.64,0.00012739,2]
[352476828,1739131839426,-251.83,0.00012877,2]
[352476829,1739131839435,-1278.27821044,0.00012892,2]
[352476830,1739131839445,-550.0,0.00013,2]
[352476831,1739131839454,-500.0,0.00013038,2]
[352476832,1739131839463,-141.49804014,0.00013038,2]
[352476834,1739131840310,-500.0,0.00012602,2]
[352476835,1739131840320,-437.75195986,0.00013038,2]
[352476836,1739131840330,-96.92684014,0.00013038,2]
[352476837,1739131840415,-262.51965024,0.00013038,2]
[352476838,1739131840427,-140.55350962,0.00013038,2]
[352476839,1739131840437,-255.17357863,0.00013038,2]
[352476840,1739131840449,-244.82642137,0.00013038,2]
[352476841,1739131840459,-500.0,0.00013038,2]
[352476842,1739131840468,-500.0,0.00013038,2]
[352476843,1739131840477,-500.0,0.00013038,2]
[352476844,1739131840487,-229.51265409,0.00013038,2]
[352476845,1739131840499,-270.48734591,0.00013038,2]
[352476846,1739131840509,-106.45771262,0.00013038,2]
[352476847,1739131840522,-393.54228738,0.00013038,2]
[352476848,1739131840531,-500.0,0.00013038,2]
[352476849,1739131840540,-185.55,0.00013038,2]
[352476850,1739131840550,-1134.72132783,0.00013039,2]
[352476851,1739131840561,-1347.0,0.00013039,2]
[352476852,1739131840573,-33966.42867217,0.00013039,2]
[352476853,1739131840582,-203.17586941,0.00013039,2]
[352476854,1739131840592,-500.0,0.00013175,2]
[352476855,1739131840601,-1757.0,0.000132,5]
[352476856,1739131840611,-1000.0,0.00013221,2]
[352476857,1739131840620,-215.0,0.0001328,2]
[352476858,1739131840631,-1278.27821044,0.00013282,2]
[352476859,1739131840640,-500.0,0.00013312,2]
[352476860,1739131840649,-1000.0,0.00013363,2]
[352476861,1739131840658,-500.0,0.00013424,2]
[352476862,1739131840667,-500.0,0.00013449,2]
[352476863,1739131840677,-25466.23411205,0.00013486,2]
[352476864,1739131840686,-215.0,0.0001349,2]
[352476865,1739131840695,-500.0,0.00013586,2]
[352476866,1739131840705,-12986.12064174,0.00013599,2]
[352476867,1739131840714,-1278.27821044,0.00013671,2]
[352476868,1739131840723,-215.0,0.0001369,2]
[352476869,1739131840733,-500.0,0.00013698,2]
[352476870,1739131840743,-500.0,0.00013698,2]
[352476871,1739131840752,-500.0,0.00013698,2]
[352476872,1739131840767,-318.31,0.00013698,2]
[352476873,1739131840777,-497.73,0.00013699,2]
[352476874,1739131840787,-21713.01,0.00013699,2]
[352476875,1739131840796,-1559.08,0.00013699,2]
[352476876,1739131840806,-200.0,0.00013699,2]
[352476877,1739131840815,-20458.77,0.00013699,2]
[352476879,1739131840825,-500.0,0.00013699,2]
[352476880,1739131840834,-91740.71,0.00013699,2]
[352476881,1739131840843,-10035.34,0.00013699,2]
[352476882,1739131840979,-284.47273947,0.00013699,2]
[352476883,1739131841029,-5617.83,0.000137,2]
[352476884,1739131841040,-5617.83,0.000137,2]
[352476885,1739131841050,-500.0,0.00013723,2]
[352476886,1739131841059,-484.83,0.0001377,2]
[352476887,1739131841069,-500.0,0.0001377,2]
[352476888,1739131841078,-500.0,0.00013771,2]
[352476889,1739131841088,-197.83684603,0.00013771,2]
[352476890,1739131841098,-500.0,0.00013771,2]
[352476891,1739131841108,-260.7495734,0.00013771,2]
[352476892,1739131841117,-193.7229987,0.00013771,2]
[352476893,1739131841127,-500.0,0.00013771,2]
[352476894,1739131841136,-500.0,0.00013771,2]
[352476895,1739131841146,-500.0,0.00013771,2]
[352476896,1739131841156,-500.0,0.00013771,2]
[352476897,1739131841165,-504.93445649,0.00013771,2]
[352476898,1739131841174,-500.0,0.00013771,2]
[352476899,1739131841184,-500.0,0.00013771,2]
[352476900,1739131841194,-500.0,0.00013771,2]
[352476901,1739131841202,-500.0,0.00013771,2]
[352476902,1739131841212,-500.0,0.00013771,2]
[352476903,1739131841221,-500.0,0.00013771,2]
[352476904,1739131841231,-500.0,0.00013771,2]
[352476905,1739131841243,-500.0,0.00013771,2]
[352476906,1739131841253,-500.0,0.00013771,2]
[352476907,1739131841263,-500.0,0.00013771,2]
[352476908,1739131841273,-500.0,0.00013771,2]
[352476909,1739131841283,-500.0,0.00013771,2]
[352476910,1739131841293,-500.0,0.00013771,2]
[352476911,1739131841302,-500.0,0.00013771,2]
[352476912,1739131841312,-500.0,0.00013771,2]
[352476913,1739131841322,-500.0,0.00013771,2]
[352476914,1739131841331,-500.0,0.00013771,2]
[352476915,1739131841341,-500.0,0.00013771,2]
[352476916,1739131841350,-500.0,0.00013771,2]
[352476917,1739131841359,-500.0,0.00013771,2]
[352476918,1739131841368,-500.84100556,0.00013771,2]
[352476919,1739131841377,-500.0,0.00013771,2]
[352476920,1739131841386,-500.0,0.00013771,2]
[352476921,1739131841396,-500.0,0.00013771,2]
[352476922,1739131841405,-500.0,0.00013771,2]
[352476923,1739131841415,-500.0,0.00013771,2]
[352476924,1739131841425,-500.0,0.00013771,2]
[352476925,1739131841435,-500.0,0.00013771,2]
[352476926,1739131841444,-503.85654733,0.00013771,2]
[352476927,1739131841455,-500.0,0.00013771,2]
[352476928,1739131841466,-292.60095225,0.00013771,2]
[352476929,1739131841475,-500.0,0.00013771,2]
[352476930,1739131841484,-500.0,0.00013771,2]
[352476931,1739131841494,-500.0,0.00013771,2]
[352476932,1739131841504,-500.0,0.00013771,2]
[352476933,1739131841513,-500.0,0.00013771,2]
[352476934,1739131841523,-500.0,0.00013771,2]
[352476935,1739131841533,-500.0,0.00013771,2]
[352476936,1739131841543,-500.0,0.00013771,2]
[352476937,1739131841556,-500.0,0.00013771,2]
[352476938,1739131841566,-500.0,0.00013771,2]
[352476939,1739131841576,-500.0,0.00013771,2]
[352476940,1739131841586,-1003.37786345,0.00013771,2]
[352476941,1739131841596,-501.58552708,0.00013771,2]
[352476942,1739131841605,-500.0,0.00013771,2]
[352476943,1739131841615,-500.0,0.00013771,2]
[352476944,1739131841625,-500.0,0.00013771,2]
[352476945,1739131841634,-500.0,0.00013771,2]
[352476946,1739131841644,-500.0,0.00013771,2]
[352476947,1739131841654,-500.0,0.00013771,2]
[352476948,1739131841664,-500.0,0.00013771,2]
[352476949,1739131841673,-500.0,0.00013771,2]
[352476950,1739131841683,-500.0,0.00013771,2]
[352476951,1739131841693,-500.0,0.00013771,2]
[352476952,1739131841702,-500.0,0.00013771,2]
[352476953,1739131841712,-500.0,0.00013771,2]
[352476954,1739131841721,-274.50555759,0.00013771,2]
[352476955,1739131841731,-500.0,0.00013771,2]
[352476956,1739131841741,-500.0,0.00013771,2]
[352476957,1739131841751,-500.0,0.00013771,2]
[352476958,1739131841760,-500.0,0.00013771,2]
[352476959,1739131841770,-500.0,0.00013771,2]
[352476960,1739131841780,-509.02410604,0.00013771,2]
[352476961,1739131841789,-500.0,0.00013771,2]
[352476962,1739131841799,-500.0,0.00013771,2]
[352476963,1739131841808,-500.0,0.00013771,2]
[352476964,1739131841818,-1300.0,0.00013772,2]
[352476965,1739131841827,-700.0,0.00013772,2]
[352476966,1739131841837,-1400.0,0.00013772,2]
[352476967,1739131841847,-500.0,0.0001386,2]
[352476968,1739131841857,-692.26,0.00013903,2]
[352476969,1739131841867,-500.0,0.00013997,2]
[352476970,1739131841877,-236.52,0.00014019,2]
[352476971,1739131841887,-1278.27821044,0.0001406,2]
[352476972,1739131841896,-500.0,0.00014134,2]
[352476973,1739131841906,-500.0,0.00014198,2]
[352476974,1739131841915,-500.0,0.00014198,2]
[352476975,1739131841925,-512.69,0.00014198,2]
[352476976,1739131841935,-500.0,0.00014198,2]
[352476977,1739131841945,-500.0,0.00014198,2]
[352476978,1739131841955,-500.0,0.00014198,2]
[352476979,1739131841965,-500.0,0.00014198,2]
[352476980,1739131841975,-500.0,0.00014198,2]
[352476981,1739131841984,-500.0,0.00014198,2]
[352476982,1739131841994,-500.0,0.00014198,2]
[352476983,1739131842004,-500.0,0.00014198,2]
[352476984,1739131842014,-500.0,0.00014198,2]
[352476985,1739131842025,-500.0,0.00014198,2]
[352476986,1739131842034,-356.81215874,0.00014198,2]
[352476987,1739131842044,-500.0,0.00014198,2]
[352476988,1739131842053,-504.98194461,0.00014198,2]
[352476989,1739131842063,-500.0,0.00014198,2]
[352476990,1739131842072,-500.0,0.00014198,2]
[352476991,1739131842082,-500.0,0.00014198,2]
[352476992,1739131842091,-500.0,0.00014198,2]
[352476993,1739131842101,-500.0,0.00014198,2]
[352476994,1739131842111,-500.0,0.00014198,2]
[352476995,1739131842121,-500.0,0.00014198,2]
[352476996,1739131842131,-500.0,0.00014198,2]
[352476997,1739131842140,-500.0,0.00014198,2]
[352476998,1739131842149,-500.0,0.00014198,2]
[352476999,1739131842158,-500.0,0.00014198,2]
[352477000,1739131842167,-500.0,0.00014198,2]
[352477001,1739131842177,-500.0,0.00014198,2]
[352477002,1739131842188,-500.0,0.00014198,2]
[352477003,1739131842197,-500.0,0.00014198,2]
[352477004,1739131842209,-500.0,0.00014198,2]
[352477005,1739131842219,-500.0,0.00014198,2]
[352477006,1739131842228,-500.0,0.00014198,2]
[352477007,1739131842239,-500.0,0.00014198,2]
[352477008,1739131842252,-500.0,0.00014198,2]
[352477009,1739131842261,-500.0,0.00014198,2]
[352477010,1739131842271,-500.0,0.00014198,2]
[352477011,1739131842281,-500.0,0.00014198,2]
[352477012,1739131842291,-500.0,0.00014198,2]
[352477013,1739131842302,-500.0,0.00014198,2]
[352477014,1739131842311,-500.0,0.00014198,2]
[352477015,1739131842322,-500.0,0.00014198,2]
[352477016,1739131842332,-500.0,0.00014198,2]
[352477017,1739131842342,-500.0,0.00014198,2]
[352477018,1739131842352,-500.0,0.00014198,2]
[352477019,1739131842361,-500.0,0.00014198,2]
[352477020,1739131842371,-466.82854933,0.00014198,2]
[352477021,1739131842381,-500.0,0.00014198,2]
[352477022,1739131842391,-500.0,0.00014198,2]
[352477023,1739131842401,-500.0,0.00014198,2]
[352477024,1739131842410,-500.0,0.00014198,2]
[352477025,1739131842420,-500.0,0.00014198,2]
[352477026,1739131842430,-500.0,0.00014198,2]
[352477027,1739131842439,-500.0,0.00014198,2]
[352477028,1739131842449,-500.0,0.00014198,2]
[352477029,1739131842459,-500.0,0.00014198,2]
[352477030,1739131842469,-533.55631367,0.00014198,2]
[352477031,1739131842479,-500.0,0.00014198,2]
[352477032,1739131842488,-500.0,0.00014198,2]
[352477033,1739131842498,-500.0,0.00014198,2]
[352477034,1739131842507,-500.0,0.00014198,2]
[352477035,1739131842516,-500.0,0.00014198,2]
[352477036,1739131842526,-500.0,0.00014198,2]
[352477037,1739131842536,-500.0,0.00014198,2]
[352477038,1739131842545,-500.0,0.00014198,2]
[352477039,1739131842555,-500.0,0.00014198,2]
[352477040,1739131842565,-500.0,0.00014198,2]
[352477041,1739131842574,-500.0,0.00014198,2]
[352477042,1739131842584,-500.0,0.00014198,2]
[352477043,1739131842594,-500.0,0.00014198,2]
[352477044,1739131842604,-500.0,0.00014198,2]
[352477045,1739131842614,-449.80953791,0.00014198,2]
[352477046,1739131842624,-500.0,0.00014198,2]
[352477047,1739131842634,-500.0,0.00014198,2]
[352477048,1739131842644,-500.0,0.00014198,2]
[352477049,1739131842655,-500.0,0.00014198,2]
[352477050,1739131842665,-500.0,0.00014198,2]
[352477051,1739131842674,-500.0,0.00014198,2]
[352477052,1739131842684,-505.99571447,0.00014198,2]
[352477053,1739131842694,-500.0,0.00014198,2]
[352477054,1739131842703,-500.0,0.00014198,2]
[352477055,1739131842712,-500.0,0.00014198,2]
[352477056,1739131842722,-500.0,0.00014198,2]
[352477057,1739131842733,-500.0,0.00014198,2]
[352477058,1739131842743,-500.0,0.00014198,2]
[352477059,1739131842752,-500.0,0.00014198,2]
[352477060,1739131842762,-500.0,0.00014198,2]
[352477061,1739131842772,-500.0,0.00014198,2]
[352477062,1739131842781,-25466.23411199,0.00014199,2]
[352477063,1739131842791,-1500.0,0.00014222,2]
[352477064,1739131842801,-500.0,0.00014271,2]
[352477065,1739131842810,-12986.12064169,0.00014299,2]
[352477066,1739131842821,-500.0,0.00014408,2]
[352477067,1739131842830,-1278.27821044,0.0001445,2]
[352477068,1739131842840,-500.0,0.00014545,2]
[352477069,1739131842849,-500.0,0.00014682,2]
[352477070,1739131842859,-1000.0,0.000147,2]
[352477071,1739131842868,-500.0,0.00014819,2]
[352477072,1739131842878,-1278.27821044,0.00014839,2]
[352477073,1739131842888,-215.59081356,0.000149,2]
[352477074,1739131842897,-215.59081356,0.000149,2]
[352477075,1739131842908,-215.59081356,0.000149,2]
[352477076,1739131842917,-25466.23411199,0.00014911,2]
[352477077,1739131842927,-500.0,0.00014956,2]
[352477078,1739131842937,-12986.12064169,0.00014999,2]
[352477079,1739131842946,-600.0,0.00015,2]
[352477080,1739131842956,-300.0,0.00015068,2]
[352477081,1739131842965,-389.64648673,0.00015093,2]
[352477082,1739131842974,-1300.0,0.00015142,2]
[352477083,1739131842984,-700.0,0.00015142,2]
[352477084,1739131842994,-1400.0,0.00015142,2]
[352477085,1739131843004,-1278.27821044,0.00015228,2]
[352477086,1739131843014,-236.52,0.00015421,2]
[352477087,1739131843023,-1278.27821044,0.00015618,2]
[352477088,1739131843033,-886.46,0.00015621,2]
[352477089,1739131843042,-25466.23411199,0.00015624,2]
[352477090,1739131843052,-12986.12064169,0.00015699,2]
[352477091,1739131843062,-2000.0,0.00016,2]
[352477092,1739131843071,-1278.27821044,0.00016007,2]
[352477093,1739131843080,-2000.0,0.0001601,2]
[352477094,1739131843090,-3716.062214,0.0001602,2]
[352477095,1739131843099,-1000.0,0.00016036,2]
[352477096,1739131843108,-9999.99,0.00016116,2]
[352477097,1739131843118,-692.26,0.00016167,2]
[352477098,1739131843127,-20898.22304443,0.00016337,2]
[352477099,1739131843142,-487.55084117,0.00016337,2]
[352477104,1739131844556,-90.57257179,0.00016337,2]
[352477105,1739131844793,-150.0,0.00010959,2]
[352477106,1739131844803,-1402.37397869,0.00016337,2]
[352477107,1739131846371,-202.02378117,0.00013771,2]
[352477108,1739131846381,-374.75,0.00014819,2]
[352477109,1739131846391,-2587.51367591,0.00016337,2]
[352477110,1739131846400,-1278.27821044,0.00016396,2]
[352477111,1739131846410,-12986.12064169,0.00016399,2]
[352477112,1739131846420,-300.0,0.00016438,2]
[352477113,1739131846429,-472.7976782,0.00016512,2]
[352477114,1739131846441,-827.2023218,0.00016512,2]
[352477115,1739131846451,-700.0,0.00016512,2]
[352477116,1739131846462,-1400.0,0.00016512,2]
[352477117,1739131846471,-3949.14,0.000166,7]
[352477118,1739131846481,-812.88,0.00016658,30]
[352477119,1739131846490,-1000.0,0.00016668,2]
[352477120,1739131846500,-4552.08,0.000167,31]
[352477121,1739131846509,-4552.08,0.000167,31]
[352477122,1739131846519,-4552.08,0.000167,31]
[352477123,1739131846529,-4552.08,0.000167,31]
[352477124,1739131846538,-4552.08,0.000167,31]
[352477125,1739131846547,-4552.08,0.000167,31]
[352477126,1739131846557,-4552.08,0.000167,31]
[352477127,1739131846566,-4552.08,0.000167,31]
[352477128,1739131846576,-4552.08,0.000167,31]
[352477129,1739131846586,-4552.08,0.000167,31]
[352477130,1739131846596,-4552.08,0.000167,31]
[352477131,1739131846606,-4552.08,0.000167,31]
[352477132,1739131846616,-4552.08,0.000167,31]
[352477133,1739131846626,-4552.08,0.000167,31]
[352477134,1739131846636,-4552.08,0.000167,31]
[352477135,1739131846645,-4552.08,0.000167,31]
[352477138,1739131846805,-176.34,0.00016712,2]
[352477139,1739131846815,-1278.27821044,0.00016785,2]